Cogmind - Beta 13 @@@ ROGUE MODE // 2024.04.26 @ 18:55:04 Player: MO-55 Result: Destroyed by N0-OTP(R) with Subdweller Laser Performance ------------- Evolutions (0) 0 Regions Visited (2) 400 Robots Destroyed (26) 130 Value Destroyed (742) 742 Prototype IDs (0) 0 Alien Tech Used (0) 0 Bonus (0) 0 TOTAL SCORE: 1272 Bonus ------- None Cogmind --------- Core Integrity 0/250 Matter 290/300 Energy 240/250 System Corruption 0% Temperature Cool (66) Movement Treading (240) Ox1 Location -10/Subcaves Parts ------- > --- POWER (1) -------- Ion Engine > --- PROPULSION (2) --- Light Treads Light Treads > --- UTILITY (2) ------ Large Storage Unit Makeshift Light Armor Plating > --- WEAPON (2) ------- Subdweller Beam Cannon Subdweller Beam Cannon > --- INVENTORY (15) --- Ion Engine Light Treads Light Treads Spiked Treads High-capacity Storage Unit Structural Scanner Seismic Detector Scrap Shield Hacking Suite Power Bank Light Cannon Light Cannon Subdweller Shrapnel Launcher Peak State ------------ > --- POWER ------------ Ion Engine > --- PROPULSION ------- Light Treads Light Treads > --- UTILITY ---------- Large Storage Unit Makeshift Light Armor Plating > --- WEAPON ----------- Subdweller Beam Cannon Subdweller Beam Cannon > --- INVENTORY -------- Ion Engine Light Treads Light Treads Light Treads Spiked Treads High-capacity Storage Unit Structural Scanner Seismic Detector Scrap Shield Hacking Suite Subdweller Laser Light Cannon Light Cannon Mining Laser [Rating: 14] Favorites ----------- Power Ion Engine Engine Ion Engine Power Core Light Nuclear Core Propulsion Light Treads Treads Light Treads Leg Aluminum Leg Utility Large Storage Unit Device Seismic Detector Storage Large Storage Unit Protection Makeshift Light Armor Plating Weapon Subdweller Beam Cannon Energy Gun Medium Laser Energy Cannon Subdweller Beam Cannon Ballistic Gun Assault Rifle Ballistic Cannon Light Cannon Build | -11 -10 -10 ------- Run | Yrd Mat Sub Slots Evolved . | . . . Power . | . . . Propulsion . | . . . Utility . | . . . Weapon . | . . . Parts Attached 27 | 7 10 10 Power 4 | 1 3 . Engine 3 | 1 2 . Core 1 | . 1 . Reactor . | . . . Propulsion 6 | 2 3 1 Treads 3 | . 2 1 Leg 3 | 2 1 . Wheel . | . . . Hover . | . . . Flight . | . . . Utility 10 | 2 1 7 Device 4 | 1 . 3 Storage 2 | 1 1 . Processor . | . . . Hackware . | . . . Protection 4 | . . 4 Artifact . | . . . Weapon 7 | 2 3 2 Energy Gun 1 | . 1 . Energy Cannon 2 | . . 2 Ballistic Gun 2 | 2 . . Ballistic Cannon 2 | . 2 . Launcher . | . . . Special Weapon . | . . . Impact Weapon . | . . . Slashing Weapon . | . . . Piercing Weapon . | . . . Special Melee Weapon . | . . . Unidentified Prototypes . | . . . Parts Lost 5 | . 4 1 Power 2 | . 2 . Propulsion 2 | . 1 1 Utility . | . . . Weapon 1 | . 1 . Highest Loss Streak 3 | . 3 1 To Critical Strikes 1 | . . 1 Average Slot Usage (%) 99 | . 97 99 Engine 13 | . 12 14 Treads 21 | . 8 27 Leg 6 | . 19 . Device 11 | . 14 10 Storage 14 | . 14 14 Protection 2 | . . 3 Energy Gun 1 | . 3 . Energy Cannon 11 | . . 16 Ballistic Gun 4 | . 14 . Ballistic Cannon 10 | . 9 11 Naked Turns . | . . . Heaviest Build 45 | 13 32 45 Greatest Support 40 | 20 40 40 Greatest Overweight (x) 2 | 1 . 2 Average Overweight (x) . | . . . Largest Inventory Capacity 15 | 8 15 15 Average Capacity 13 | 7 9 15 Most Carried 15 | 5 9 15 Average Carried 11 | 2 7 14 Final Capacity 15 | 8 15 15 Final Carried 14 | 5 9 14 Class Distribution -------------------- 57% | Mutant 42% | Scavenger-Mutant Dominant Class ---------------- Mutant | -10/Materials Scavenger-Mutant | -10/Subcaves Resources | -11 -10 -10 ----------- Run | Yrd Mat Sub Matter Collected 891 | 253 447 191 Remotely . | . . . Salvage Created 828 | 21 400 407 Parts 70 | 4 30 36 Haulers Intercepted 1 | . 1 . Recyclers Shooed 3 | . 3 . Parts Field Recycled . | . . . Retrieved Matter . | . . . Parts Self-Destructed 3 | . . 3 Prevented . | . . . Kills | -11 -10 -10 ------- Run | Yrd Mat Sub Combat Hostiles Destroyed 20 | . 9 11 Guns 9 | . 9 . Cannons 10 | . . 10 Classes Destroyed 7 | 1 5 1 Builder 2 | . 2 . Tunneler 2 | 1 1 . Hauler 1 | . 1 . Operator 1 | . 1 . Swarmer 3 | . 3 . Grunt 6 | . 6 . Subdweller 11 | . . 11 Best Kill Streak 3 | 1 3 3 Combat Bots Only 3 | . 3 3 Max Kills in Single Turn 1 | 1 1 1 Gunslinging . | . . . Exploded . | . . . Melee . | . . . Uniques/NPCs Destroyed . | . . . Combat | -11 -10 -10 -------- Run | Yrd Mat Sub Hostile Shots Fired 93 | . 57 36 Missed 23 | . 11 12 Damage Taken 1132 | . 519 613 Core 272 | . 75 197 Absorbed by Shields . | . . . Core Remaining (%) 100 | 100 . . Volleys Fired 104 | 1 61 42 Largest 2 | 2 2 2 Hottest 160 | 40 85 160 Shots Fired 191 | 2 118 71 Gun 110 | 2 108 . Cannon 81 | . 10 71 Launcher . | . . . Special . | . . . Kinetic 123 | 2 96 25 Thermal 68 | . 22 46 Explosive . | . . . Electromagnetic . | . . . Robot Hit Streak 18 | 1 10 18 Robot Miss Streak 3 | . 3 2 Penetration Max . | . . . Secondary Targets . | . . . Shots Hit Robots 121 | 1 82 38 Core Hits 39 | 1 24 14 Critical Kills 1 | . . 1 Critical Parts Destroyed . | . . . Critical Strikes 3 | . 1 2 Meltdown 1 | . . 1 Blast 2 | . 1 1 Melee Attacks . | . . . Impact . | . . . Slashing . | . . . Piercing . | . . . Sneak Attacks . | . . . Combat Hostiles . | . . . Follow-up Attacks . | . . . Damage Inflicted 1959 | 14 1117 828 Guns 986 | 14 972 . Cannons 973 | . 145 828 Explosions . | . . . Melee . | . . . Ramming . | . . . Kinetic 1232 | 14 914 304 Thermal 727 | . 203 524 Explosive . | . . . Electromagnetic . | . . . Impact . | . . . Slashing . | . . . Piercing . | . . . Highest Corruption . | . . . Average Corruption . | . . . Corruption Purged . | . . . Corruption Blocked . | . . . Overload Shots . | . . . Overflow Damage . | . . . Projectiles . | . . . Explosions . | . . . Melee . | . . . Knockbacks 3 | . 1 2 Impact . | . . . Kinetic 3 | . 1 2 Secondary . | . . . Self-Inflicted Damage . | . . . Shots . | . . . Rammed 1 | . 1 . Targets Rammed 1 | . 1 . Kicked . | . . . Crushed . | . . . Highest Temperature 354 | . 72 354 Average Temperature 60 | . 19 97 Received Heat Transfer 644 | . 240 404 Siege Activations . | . . . Robots Corrupted . | . . . Combat Hostiles . | . . . Parts Fried . | . . . Impact Corruptions . | . . . Robots Melted 1 | . . 1 Combat Hostiles 1 | . . 1 Parts Melted 1 | . . 1 Heat Transferred 1295 | . 592 703 Parts Sabotaged . | . . . Parts Stolen . | . . . Parts Stripped . | . . . Power Chain Reactions . | . . . Alert | -11 -10 -10 ------- Run | Yrd Mat Sub Peak Influence 157 | 5 157 . Initial 3 | . 3 . Average 50 | 2 52 . Maximum Alert Level . | . . . Low Security (%) 100 | 100 100 . Level 1 . | . . . Level 2 . | . . . Level 3 . | . . . Level 4 . | . . . Level 5 . | . . . High Security . | . . . Max Security . | . . . Squads Dispatched 1 | . 1 . Investigation . | . . . Extermination . | . . . Reinforcement 1 | . 1 . Assault . | . . . Garrison . | . . . Intercept . | . . . Searches Triggered . | . . . Construction Impeded . | . . . Haulers Reinforced . | . . . Active Scanning Responses . | . . . Cargo Convoy Interrupts . | . . . Stealth | -11 -10 -10 --------- Run | Yrd Mat Sub Distress Signals . | . . . Communications Jammed . | . . . Distress Signals . | . . . Times Spotted 31 | . 18 13 Peak Tracking Total 5 | . 5 3 Tactical Retreats . | . . . Traps | -11 -10 -10 ------- Run | Yrd Mat Sub Traps Triggered . | . . . Indirectly . | . . . Trap Hack Attempts . | . . . Triggered . | . . . Disarmed . | . . . Reprogrammed . | . . . Reused . | . . . Traps Extracted . | . . . Installed . | . . . Triggered . | . . . Machines | -11 -10 -10 ---------- Run | Yrd Mat Sub Machines Disabled . | . . . Max in Single Turn . | . . . Machines Repaired . | . . . Machines Dismantled . | . . . Machines Sabotaged . | . . . Overloaded Fab Kills . | . . . Hacking | -11 -10 -10 --------- Run | Yrd Mat Sub Machines Accessed 4 | . 4 . Terminals 4 | . 4 . Fabricators . | . . . Repair Stations . | . . . Recycling Units . | . . . Scanalyzers . | . . . Garrison Access . | . . . Total Hacks 9 | . 9 . Successful 6 | . 6 . Failed 3 | . 3 . Catastrophic 1 | . 1 . Database Lockouts . | . . . Manual 4 | . 4 . Terminals 9 | . 9 . Fabricators . | . . . Repair Stations . | . . . Recycling Units . | . . . Scanalyzers . | . . . Garrison Access . | . . . Terminal Hacks 5 | . 5 . Terminal Index 1 | . 1 . Locate Traps 1 | . 1 . Registered Components 1 | . 1 . Zone Layout 2 | . 2 . Fabricator Hacks . | . . . Repair Station Hacks . | . . . Recycling Unit Hacks . | . . . Scanalyzer . | . . . Garrison Access Hacks . | . . . Unauthorized Hacks 1 | . 1 . Terminals 1 | . 1 . Botnet 1 | . 1 . Fabricators . | . . . Repair Stations . | . . . Recycling Units . | . . . Scanalyzers . | . . . Garrison Access . | . . . Data Cores Recovered . | . . . Used . | . . . Hacking Detections 3 | . 3 . Full Trace Events . | . . . Feedback Events . | . . . Feedback Blocked . | . . . Robot Schematics Acquired . | . . . Robots Built . | . . . Authchips . | . . . Time . | . . . Total Robot Build Rating . | . . . Part Schematics Acquired . | . . . Parts Built . | . . . Authchips . | . . . Time . | . . . Total Part Build Rating . | . . . Parts Repaired . | . . . Time . | . . . Parts Recycled . | . . . Recycled Matter . | . . . Retrieved Matter . | . . . Retrieved Components . | . . . Parts Scanalyzed . | . . . Part Schematics Acquired . | . . . Parts Damaged . | . . . Bothacking | -11 -10 -10 ------------ Run | Yrd Mat Sub Used RIF Installer . | . . . Robots Hacked . | . . . Non-combat . | . . . Combat . | . . . Robot Hacks Applied . | . . . Relay Couplers Released . | . . . Fabnet Peak Effective % . | . . . Robots Rewired . | . . . Allies Hacked . | . . . Hacks Repelled . | . . . Allies | -11 -10 -10 -------- Run | Yrd Mat Sub Total Allies . | . . . Largest Group . | . . . Highest-Rated Group . | . . . Highest-Rated Ally . | . . . Total Orders . | . . . Ally Attacks . | . . . Total Damage . | . . . Kills . | . . . Allies Corrupted . | . . . Allies Melted . | . . . Intel | -11 -10 -10 ------- Run | Yrd Mat Sub Robot Analysis Total . | . . . Derelict Logs Recovered 1 | . . 1 Drone Launches . | . . . Drone Recoveries . | . . . Exploration | -11 -10 -10 ------------- Run | Yrd Mat Sub Turns Passed 3631 | 65 1192 2374 Spaces Moved 1657 | 39 574 1044 Core 2 | 2 . . Treads 1122 | . 78 1044 Legs 533 | 37 496 . Wheels . | . . . Hover . | . . . Flight . | . . . Fastest Speed 50 | 50 120 160 Average Speed 170 | 121 125 197 Slowest Speed 320 | 190 160 320 Overloaded Moves . | . . . Propulsion Burnouts . | . . . Robots Hopped . | . . . Cave-ins Triggered . | . . . Exploration Rate (%) 51 | 3 93 58 Regions Visited 2 Branch Regions 1 Pre-discovered Areas . | . . . Known Exits Taken . | . . . Unknown Exits Taken 2 | 1 1 . Scrap Searched 9 | . . 9 Spaces Dug 1 | . . 1 Terrain Destroyed 3 | . . 3 Melee . | . . . Projectile 3 | . . 3 AOE . | . . . Terrain Rammed . | . . . Walls Destroyed . | . . . Machines Disabled . | . . . Actions | -11 -10 -10 --------- Run | Yrd Mat Sub Total 2269 | 51 931 1287 Wait 447 | . 266 181 Move 1655 | 38 573 1044 Hop . | . . . Pick Up 23 | 5 11 7 Fast Attach 12 | 7 4 1 Attach 5 | . 4 1 Detach . | . . . Swap 10 | . 2 8 Drop 12 | . 9 3 Fire 104 | 1 61 42 Melee . | . . . Ram . | . . . Kick . | . . . Crush 1 | . 1 . Escape Stasis . | . . . Rewire . | . . . Trap . | . . . Miscellaneous . | . . . Route ------- -11/Scrapyard -10/Materials (discovered 6 exits: [*Mat x3] / [*Min x2] / [*Sub]) -10/Subcaves History --------- Turn | Location | Event 24 | -11/Scrapyard | Discovered new exit (range 15) 66 | -11/Scrapyard | Entered Materials 223 | -10/Materials | Discovered new exit (range 13) 314 | -10/Materials | Build established: Mutant 475 | -10/Materials | Discovered new exit (range 5) 514 | -10/Materials | Discovered new exit (range 9) 606 | -10/Materials | Lost 3 parts (1p1n1w) 729 | -10/Materials | Discovered new exit (range 10) 1005 | -10/Materials | Discovered new exit (range 9) 1236 | -10/Materials | Discovered new exit (range 4) 1258 | -10/Materials | Entered Subcaves 1354 | -10/Subcaves | Learned Materials garrison access intel 1678 | -10/Subcaves | Core integrity fell below 50% 1976 | -10/Subcaves | Shifting Twisted Machinery released Sub. Power Source 2020 | -10/Subcaves | Shifting Twisted Machinery released Scrap Shield 2355 | -10/Subcaves | Disturbed a concealed Subdweller 2688 | -10/Subcaves | Build established: Scavenger-Mutant 3035 | -10/Subcaves | A Subdweller sparked back to life 3035 | -10/Subcaves | A Subdweller sparked back to life 3073 | -10/Subcaves | Found Prototype Device 3608 | -10/Subcaves | Core integrity fell below 20% 3609 | -10/Subcaves | Ambushed by Subdweller buried in earth 3632 | -10/Subcaves | Destroyed by N0-OTP(R) with Subdweller Laser Last Messages --------------- 02865_ B1-J6W(u) tweaks Twisted Machinery. 03035_ WB-COC(R) creaks and sparks as it begins to move. 03035_ WM-D04(R) creaks and sparks as it begins to move. 03041_ WB-COC(R) destroyed. 03044_ YZ-89W(R) destroyed. 03050_ WM-D04(R) destroyed. 03067_ Acquired 20 matter. 03072_ Dropped Sub. Laser. 03073_ Acquired Prototype Device. 03322_ RP-627(u) builds Twisted Machinery. 03367_ RP-627(u) tweaks Twisted Machinery. 03583_ 63-QVS(R) destroyed. 03586_ Acquired 20 matter. 03610_ UT-2W8(R): "ARGHSUB!" 03616_ Critical hit (Destroy). 03616_ Lgt. Treads destroyed. 03616_ UT-2W8(R) destroyed. WK-L1X(R) emerges from concealment. Map ----- +----------------------------------------------------+ | " " ## ##????? | | ### ### ## """ ###???? | | ######### ###### # " ##???? | | ####### ########" ### ### ###???? | | ####### ### ## " "#### ? ####????###????? | | ## #### ###### "" "" "###??? ##?????????????? | | ## #####" """ ###????????????????????? | | ##### """" "####????????????????????? | | ## #### """"" ####?????????????????????? | | ### #### """"" ####??????????????????????? | | ### ### " #" #########????????????????????? | | ## "# #########????????????????????? | | ## ## "### ###### ##????????????????????? | | #??### "#### ##### ##????????????????????? | | ##?## # ## #### #### ##### ????????????????? | | #?### ###### # ### ###### ?? ????????????? | | #?########## ### ????????????? | | ##??####???### ## ????????????? | | ##??????######## ##????????????? | | ##??????######## ##????????????? | | ##??????## ##### ###????????????? | | ##??????## ## ###?????????????? | | #???????## #### ##??????????????? | | ????????##### #### ### ?####????????????? | | ????????##### ## ####?#####???????????? | | ###?##????##### @ # ## #### ?????????? | | ## ##?## ## ;; ### ?????? | | #?## ###### RR ?????? | | #??### #######; #?????? | | #??### ##??####!&! ##?????? | | ## #???## ###????# =%& ##?????? | | #?? #?### ####??###;&*[ ; ######## ###?????? | | ##????## ###??###;; ;######????????????? | | #????## ###### ;#####???????????????? | | #????## #### "" ### ###???????????????? | | ##???## & ## " ##" ###??????????????? | | ####### & & ## *& "" #####????????????? | | ## ## & & ### =%[""""####?????? ???? | | # %#### #### ## """ ####???? ##???? | | # ############# #### """ ### ##???? | | ### #??# ###?### #### "" ??###???? | | # ### #????## #### ## ????????? | | # #????####### ##" ?????????????? | | # #????##### " ###??????????????? | | #### #? " ##???????????????? | | # #### #?### " ##???????????????? | | #### #?####### #"???????????????? | | ## ########### "???????????????? | | ! ## ## ######### ##?????????????? | | # ## ### ## ####### ###?????????????? | +----------------------------------------------------+ Best States ------------- Heat Dissipation 25 Energy Generation 14 Energy Capacity 250 Matter Stores 300 Matter Capacity 300 Sight Range 16 Terrain Scan Density 10 Armor Coverage 100 Evasion (%) 55 Recoil Reduction 2 Item Schematics ----------------- None Robot Schematics ------------------ None Fabricated ------------ Nothing Alien Tech Used ----------------- None Achievements -------------- None Challenges ------------ None Game ------ Seed BladePlasmaAutocannon Manual? 0 Play Time 00:16:31 Cumulative 108.8 hours Start 2024.04.26 @ 18:37:53 End 2024.04.26 @ 18:55:04 Sessions 1 Manual Loads 0 Difficulty Rogue Special Mode None Game No. 93 Rogue 93 Adventurer 0 Explorer 0 Win Type - Total 2 Types 1/0/1/0/0/0/0/0/0 Lore% 50 Gallery% 62 Achievement% 51 Wizard Run 0 Options --------- Layout 2 ASCII 0 Keyboard 0 Movement Mouse Keybinds 1 Fullscreen 2 Font 32/SmallcapsGlow Map View 50x44 Zoom Use 4% Tactical HUD 1 Map Filters NONE Filters NONE Steam 1 RUN: f6afc9af-bfe3-480f-872e-b55c7f0ea7bd